[Event "elllobregat Open-A 2019"]
[Site "El Prat de Llobregat"]
[Date "2019.12.03"]
[Round "1.13"]
[White "Del Rio De Angelis, Salvador G."]
[Black "Lever, Erwan"]
[Result "1-0"]
[ECO "D80"]
[WhiteElo "2507"]
[BlackElo "2258"]
[Annotator "ChessBase"]
[PlyCount "53"]
[EventDate "2019.12.03"]
[EventType "swiss"]
[EventCountry "ESP"]
[SourceTitle "playchess.com"]
[Source "ChessBase"]
[SourceQuality "1"]
[TimeControl "40/5400+30:1800+30"]

1. d4 {[%emt 0:21:38]} Nf6 {[%emt 0:00:29]} 2. c4 g6 {[%emt 0:00:04]} 3. Nc3 {[%emt 0:00:20]} d5 {[%emt 0:00:05]} 4. Bg5 {[%emt 0:00:12]} Bg7 {[%emt 0:01:15]} 5. Bxf6 {[%emt 0:00:17]} Bxf6 {[%emt 0:00:04]} 6. cxd5 {[%emt 0:00:07]} Bg7 {[%emt 0:00:04]} 7. Nf3 {[%emt 0:01:49]} c6 {[%emt 0:04:25]} 8. dxc6 {[%emt 0:01:41]} Nxc6 {[%emt 0:00:08]} 9. e3 {[%emt 0:00:23]} O-O {[%emt 0:01:46]} 10. Be2 Qb6 {[%emt 0:11:35]} 11. Qd2 {[%emt 0:03:32]} e5 {[%emt 0:11:48]} 12. d5 {[%emt 0:00:32]} Rd8 {[%emt 0:01:29]} 13. O-O Ne7 {[%emt 0:13:37]} 14. e4 {[%emt 0:03:07]} Bd7 {[%emt 0:01:01]} 15. Qc2 {[%emt 0:14:47]} Rac8 {[%emt 0:07:38]} 16. Rad1 {[%emt 0:02:36]} Rc5 {[%emt 0:01:32]} 17. Nd2 {[%emt 0:03:51]} Nc8 {[%emt 0:08:11]} 18. Nc4 {[%emt 0:07:54]} Qc7 {[%emt 0:01:33]} 19. d6 {[%emt 0:01:40]} Qc6 {[%emt 0:00:32]} 20. Nd5 {[%emt 0:00:55]} Be6 {[%emt 0:12:33]} 21. b4 {[%emt 0:02:21]} Rxd5 {[%emt 0:00:30]} 22. exd5 {[%emt 0:05:48]} Bxd5 {[%emt 0:00:02]} 23. b5 Qc5 {[%emt 0:01:33]} 24. Rc1 {[%emt 0:03:26]} Bh6 {[%emt 0:02:16]} 25. Ne3 {[%emt 0:00:14]} Qxd6 {[%emt 0:02:20]} 26. Nxd5 Bxc1 {[%emt 0:00:55]} 27. Rxc1 {[%emt 0:00:54]} 1-0

[Event "elllobregat Open-A 2019"]
[Site "El Prat de Llobregat"]
[Date "2019.12.03"]
[Round "1.15"]
[White "Munoz, Miguel"]
[Black "Dushyant Sharma"]
[Result "1/2-1/2"]
[ECO "C22"]
[WhiteElo "2498"]
[BlackElo "2247"]
[Annotator "ChessBase"]
[PlyCount "50"]
[EventDate "2019.12.03"]
[EventType "swiss"]
[EventCountry "ESP"]
[SourceTitle "playchess.com"]
[Source "ChessBase"]
[SourceQuality "1"]
[TimeControl "40/5400+30:1800+30"]

1. e4 {[%emt 0:07:56]} e5 {[%emt 0:00:00]} 2. d4 {[%emt 0:00:20]} exd4 {[%emt 0:00:20]} 3. Qxd4 {[%emt 0:00:06]} Nc6 {[%emt 0:00:44]} 4. Qe3 {[%emt 0:00:07]} Nf6 {[%emt 0:00:43]} 5. Bd2 {[%emt 0:00:08]} Bb4 {[%emt 0:00:48]} 6. c3 {[%emt 0:00:22]} Be7 {[%emt 0:00:23]} 7. c4 {[%emt 0:00:07]} O-O {[%emt 0:01:00]} 8. Nc3 {[%emt 0:00:09]} Ng4 {[%emt 0:00:45]} 9. Qe2 {[%emt 0:00:21]} d5 {[%emt 0:01:18]} 10. O-O-O {[%emt 0:10:49]} Nd4 {[%emt 0:03:23]} 11. Qe1 {[%emt 0:00:10]} dxe4 {[%emt 0:01:59]} 12. h3 Nf6 {[%emt 0:04:25]} 13. Be3 {[%emt 0:05:45]} c5 {[%emt 0:00:50]} 14. Nge2 {[%emt 0:00:08]} Nxe2+ {[%emt 0:11:23]} 15. Qxe2 {[%emt 0:00:09]} Qa5 {[%emt 0:01:04]} 16. g4 {[%emt 0:00:37]} Be6 {[%emt 0:01:35]} 17. Bd2 {[%emt 0:00:38]} Qa6 {[%emt 0:00:48]} 18. g5 {[%emt 0:03:47]} Ne8 {[%emt 0:02:59]} 19. Qxe4 {[%emt 0:04:05]} Nd6 {[%emt 0:01:26]} 20. Qc2 {[%emt 0:00:07]} Bf5 {[%emt 0:14:18]} 21. Qb3 {[%emt 0:05:32]} Be6 {[%emt 0:06:04]} 22. Qc2 {[%emt 0:03:09]} Bf5 {[%emt 0:02:34]} 23. Qb3 {[%emt 0:00:18]} Be6 {[%emt 0:07:03]} 24. Qc2 {[%emt 0:01:04]} Bf5 {[%emt 0:02:33]} 25. Qb3 {[%emt 0:00:24]} Be6 {[%emt 0:00:05]} 1/2-1/2

[Event "elllobregat Open-A 2019"]
[Site "El Prat de Llobregat"]
[Date "2019.12.04"]
[Round "2.4"]
[White "Alonso Rosell, Alvar"]
[Black "Rathanvel, V S"]
[Result "1-0"]
[ECO "D85"]
[WhiteElo "2548"]
[BlackElo "2410"]
[Annotator "ChessBase"]
[PlyCount "55"]
[EventDate "2019.12.03"]
[EventType "swiss"]
[EventCountry "ESP"]
[SourceTitle "playchess.com"]
[Source "ChessBase"]
[SourceQuality "1"]
[TimeControl "40/5400+30:1800+30"]

1. d4 {[%emt 0:16:43]} Nf6 {[%emt 0:00:00]} 2. c4 g6 {[%emt 0:00:00]} 3. Nc3 {[%emt 0:00:05]} d5 {[%emt 0:00:01]} 4. cxd5 Nxd5 {[%emt 0:00:06]} 5. e4 {[%emt 0:00:09]} Nxc3 {[%emt 0:00:09]} 6. bxc3 {[%emt 0:00:02]} Bg7 {[%emt 0:00:11]} 7. Be3 {[%emt 0:00:15]} c5 {[%emt 0:00:27]} 8. Qd2 {[%emt 0:08:36]} Qa5 {[%emt 0:02:00]} 9. Rc1 {[%emt 0:00:07]} O-O {[%emt 0:01:42]} 10. Nf3 {[%emt 0:00:27]} Nd7 {[%emt 0:02:30]} 11. Bd3 {[%emt 0:02:22]} e5 {[%emt 0:00:07]} 12. d5 f5 13. Qc2 {[%emt 0:06:34]} fxe4 {[%emt 0:06:22]} 14. Bxe4 {[%emt 0:00:31]} Nf6 {[%emt 0:00:27]} 15. O-O Nxe4 {[%emt 0:26:09]} 16. Qxe4 {[%emt 0:01:30]} Qxa2 {[%emt 0:00:45]} 17. c4 Bf5 {[%emt 0:01:52]} 18. Qh4 {[%emt 0:02:37]} e4 {[%emt 0:08:09]} 19. Ng5 {[%emt 0:07:30]} h6 {[%emt 0:00:15]} 20. Ne6 {[%emt 0:01:53]} g5 {[%emt 0:27:33]} 21. Qh5 {[%emt 0:08:17]} Bxe6 {[%emt 0:03:22]} 22. dxe6 {[%emt 0:01:10]} b6 23. h4 {[%emt 0:20:42]} gxh4 {[%emt 0:05:51]} 24. Rfd1 {[%emt 0:01:00]} Qb2 {[%emt 0:03:03]} 25. e7 Rfe8 {[%emt 0:00:27]} 26. Qd5+ {[%emt 0:01:25]} Kh8 {[%emt 0:00:52]} 27. Qxa8 {[%emt 0:00:07]} Rxa8 {[%emt 0:00:05]} 28. Rd8+ 1-0

[Event "elllobregat Open-A 2019"]
[Site "El Prat de Llobregat"]
[Date "2019.12.04"]
[Round "2.5"]
[White "Gukesh D"]
[Black "Moksh Amit Doshi"]
[Result "1-0"]
[ECO "A06"]
[WhiteElo "2547"]
[BlackElo "2399"]
[Annotator "ChessBase"]
[PlyCount "63"]
[EventDate "2019.12.03"]
[EventType "swiss"]
[EventCountry "ESP"]
[SourceTitle "playchess.com"]
[Source "ChessBase"]
[SourceQuality "1"]
[TimeControl "40/5400+30:1800+30"]

1. Nf3 {[%emt 0:00:00]} d5 2. e3 {[%emt 0:03:10]} Nf6 {[%emt 0:01:04]} 3. c4 {[%emt 0:00:40]} e6 {[%emt 0:00:31]} 4. Nc3 {[%emt 0:00:29]} dxc4 {[%emt 0:02:42]} 5. Bxc4 {[%emt 0:00:13]} a6 {[%emt 0:01:07]} 6. a4 {[%emt 0:02:05]} b6 {[%emt 0:01:15]} 7. e4 {[%emt 0:13:19]} Bb7 8. e5 {[%emt 0:04:38]} Nd5 {[%emt 0:01:55]} 9. d4 c5 10. Bxd5 {[%emt 0:15:59]} Bxd5 {[%emt 0:13:57]} 11. Bg5 {[%emt 0:00:22]} Qd7 {[%emt 0:02:53]} 12. Nxd5 {[%emt 0:01:24]} exd5 13. a5 b5 {[%emt 0:07:40]} 14. dxc5 {[%emt 0:19:11]} Bxc5 {[%emt 0:01:45]} 15. Rc1 {[%emt 0:00:19]} Bb4+ {[%emt 0:01:27]} 16. Bd2 {[%emt 0:00:07]} Bxd2+ {[%emt 0:02:06]} 17. Qxd2 Nc6 {[%emt 0:01:30]} 18. Rc5 {[%emt 0:04:15]} Ne7 {[%emt 0:00:39]} 19. O-O {[%emt 0:01:12]} O-O {[%emt 0:00:07]} 20. Rfc1 {[%emt 0:03:45]} Rac8 {[%emt 0:01:07]} 21. Nd4 Rxc5 {[%emt 0:03:04]} 22. Rxc5 {[%emt 0:01:11]} Rc8 {[%emt 0:12:35]} 23. Qc3 {[%emt 0:19:12]} Kf8 {[%emt 0:01:45]} 24. f4 Ke8 25. Rxc8+ {[%emt 0:01:10]} Nxc8 {[%emt 0:01:38]} 26. Qc6 Na7 {[%emt 0:05:33]} 27. Qa8+ {[%emt 0:02:27]} Ke7 {[%emt 0:00:14]} 28. Kf1 {[%emt 0:00:27]} b4 29. Qxa7 Qxa7 {[%emt 0:00:36]} 30. Nc6+ {[%emt 0:00:33]} Kd7 {[%emt 0:00:07]} 31. Nxa7 {[%emt 0:00:04]} Kc7 {[%emt 0:00:04]} 32. f5 1-0

[Event "elllobregat Open-A 2019"]
[Site "El Prat de Llobregat"]
[Date "2019.12.04"]
[Round "2.6"]
[White "Erigaisi Arjun"]
[Black "Mendonca, Leon Luke"]
[Result "1-0"]
[ECO "A47"]
[WhiteElo "2544"]
[BlackElo "2398"]
[Annotator "ChessBase"]
[PlyCount "121"]
[EventDate "2019.12.03"]
[EventType "swiss"]
[EventCountry "ESP"]
[SourceTitle "playchess.com"]
[Source "ChessBase"]
[SourceQuality "1"]
[TimeControl "40/5400+30:1800+30"]

1. d4 {[%emt 0:00:00]} Nf6 {[%emt 0:00:00]} 2. Nf3 {[%emt 0:00:09]} b6 {[%emt 0:02:58]} 3. Bg5 Ne4 {[%emt 0:01:11]} 4. Bh4 {[%emt 0:00:39]} Bb7 {[%emt 0:01:41]} 5. Nbd2 g6 {[%emt 0:05:30]} 6. Nxe4 {[%emt 0:02:23]} Bxe4 {[%emt 0:00:02]} 7. Nd2 {[%emt 0:00:08]} Bb7 {[%emt 0:00:40]} 8. e4 {[%emt 0:00:12]} Bg7 {[%emt 0:00:34]} 9. c3 {[%emt 0:00:42]} O-O 10. Bd3 {[%emt 0:00:38]} c5 {[%emt 0:14:23]} 11. d5 {[%emt 0:02:51]} d6 {[%emt 0:00:06]} 12. O-O Ba6 {[%emt 0:04:46]} 13. Qe2 {[%emt 0:03:08]} Bxd3 {[%emt 0:03:25]} 14. Qxd3 {[%emt 0:00:06]} Nd7 {[%emt 0:12:51]} 15. f4 Bf6 {[%emt 0:00:51]} 16. Bg3 {[%emt 0:05:54]} Qc7 17. Rae1 {[%emt 0:08:11]} b5 {[%emt 0:09:19]} 18. Qxb5 {[%emt 0:01:36]} Rab8 {[%emt 0:19:17]} 19. Qc6 Qxc6 20. dxc6 {[%emt 0:00:38]} Nb6 {[%emt 0:00:33]} 21. e5 dxe5 {[%emt 0:01:38]} 22. fxe5 {[%emt 0:01:06]} Bg7 23. e6 {[%emt 0:01:35]} Rbc8 {[%emt 0:00:31]} 24. exf7+ Rxf7 {[%emt 0:00:00]} 25. Rxf7 {[%emt 0:01:12]} Kxf7 {[%emt 0:05:50]} 26. c7 e5 27. Bxe5 {[%emt 0:04:00]} Bxe5 {[%emt 0:01:09]} 28. Rxe5 {[%emt 0:00:00]} Rxc7 {[%emt 0:00:23]} 29. Kf2 {[%emt 0:00:49]} Na4 30. Nc4 {[%emt 0:00:40]} Kf6 {[%emt 0:10:42]} 31. Re3 {[%emt 0:04:39]} Nb6 {[%emt 0:03:58]} 32. Re4 h5 33. Ke2 {[%emt 0:02:37]} Rd7 {[%emt 0:01:06]} 34. Ne3 {[%emt 0:02:28]} Rd8 {[%emt 0:01:10]} 35. h3 {[%emt 0:05:59]} Rd7 {[%emt 0:01:44]} 36. g4 Rh7 {[%emt 0:00:47]} 37. Kf3 {[%emt 0:01:44]} Rh8 38. a4 {[%emt 0:20:42]} a5 {[%emt 0:01:14]} 39. h4 hxg4+ {[%emt 0:00:34]} 40. Nxg4+ {[%emt 0:00:00]} Kf7 {[%emt 0:00:00]} 41. Ne5+ {[%emt 0:02:32]} Kf6 {[%emt 0:04:29]} 42. Kg4 {[%emt 0:01:49]} Rd8 {[%emt 0:10:41]} 43. Nxg6 {[%emt 0:02:52]} Rd2 44. Kh5 {[%emt 0:00:33]} Rxb2 {[%emt 0:02:32]} 45. Kh6 {[%emt 0:00:57]} Nd5 {[%emt 0:05:49]} 46. h5 {[%emt 0:01:28]} Rh2 {[%emt 0:01:50]} 47. c4 Nc3 {[%emt 0:00:02]} 48. Rf4+ {[%emt 0:01:25]} Ke6 {[%emt 0:04:20]} 49. Rf3 {[%emt 0:05:05]} Ne4 {[%emt 0:01:45]} 50. Kg7 Nd6 {[%emt 0:00:01]} 51. Rf6+ {[%emt 0:13:53]} Kd7 {[%emt 0:00:51]} 52. Nf8+ {[%emt 0:02:45]} Kc7 {[%emt 0:00:52]} 53. Ne6+ Kc6 {[%emt 0:00:23]} 54. Nf4 {[%emt 0:00:31]} Kd7 {[%emt 0:02:06]} 55. Kg8 Ne4 {[%emt 0:01:08]} 56. Re6 {[%emt 0:02:19]} Ng3 {[%emt 0:01:43]} 57. h6 Nh5 58. Re2 {[%emt 0:00:55]} Rxe2 {[%emt 0:01:00]} 59. Nxe2 {[%emt 0:00:05]} Ke6 {[%emt 0:00:05]} 60. Nc3 Kf5 {[%emt 0:00:37]} 61. Nd5 {[%emt 0:00:20]} 1-0

[Event "elllobregat Open-A 2019"]
[Site "El Prat de Llobregat"]
[Date "2019.12.04"]
[Round "2.7"]
[White "Baenziger, Fabian"]
[Black "Harsha Bharathakoti"]
[Result "1/2-1/2"]
[ECO "D30"]
[WhiteElo "2398"]
[BlackElo "2523"]
[Annotator "ChessBase"]
[PlyCount "60"]
[EventDate "2019.12.03"]
[EventType "swiss"]
[EventCountry "ESP"]
[SourceTitle "playchess.com"]
[Source "ChessBase"]
[SourceQuality "1"]
[TimeControl "40/5400+30:1800+30"]

1. d4 {[%emt 0:00:00]} d5 {[%emt 0:00:01]} 2. c4 {[%emt 0:00:00]} e6 {[%emt 0:00:06]} 3. Nf3 {[%emt 0:00:33]} Nf6 {[%emt 0:00:31]} 4. g3 {[%emt 0:00:38]} Bb4+ {[%emt 0:01:42]} 5. Bd2 {[%emt 0:00:15]} Be7 {[%emt 0:00:06]} 6. Bg2 {[%emt 0:00:27]} O-O {[%emt 0:00:10]} 7. O-O {[%emt 0:00:07]} Nbd7 {[%emt 0:00:11]} 8. Qc2 {[%emt 0:02:02]} Ne4 {[%emt 0:02:44]} 9. Nc3 {[%emt 0:00:43]} Nxd2 {[%emt 0:00:07]} 10. Nxd2 {[%emt 0:00:07]} c6 {[%emt 0:00:07]} 11. e4 {[%emt 0:13:38]} dxe4 {[%emt 0:01:44]} 12. Ndxe4 {[%emt 0:00:28]} f5 {[%emt 0:01:08]} 13. Nd2 {[%emt 0:00:34]} e5 {[%emt 0:01:15]} 14. dxe5 Nxe5 {[%emt 0:03:28]} 15. Rad1 {[%emt 0:06:17]} Qc7 {[%emt 0:03:07]} 16. Nf3 {[%emt 0:07:08]} Nxf3+ {[%emt 0:06:19]} 17. Bxf3 {[%emt 0:03:16]} Bf6 {[%emt 0:02:03]} 18. Rfe1 {[%emt 0:03:25]} Bd7 {[%emt 0:04:50]} 19. Na4 {[%emt 0:06:27]} Rae8 {[%emt 0:05:20]} 20. Nc5 {[%emt 0:04:06]} Bc8 {[%emt 0:00:14]} 21. Nd3 {[%emt 0:08:36]} g6 {[%emt 0:13:08]} 22. Kg2 {[%emt 0:04:12]} Qf7 23. Rxe8 {[%emt 0:07:19]} Rxe8 {[%emt 0:16:25]} 24. Nf4 {[%emt 0:03:23]} Qe7 {[%emt 0:03:55]} 25. h4 Rd8 {[%emt 0:00:52]} 26. Rxd8+ {[%emt 0:06:47]} Qxd8 {[%emt 0:02:11]} 27. b4 {[%emt 0:00:49]} Qd4 {[%emt 0:10:22]} 28. b5 {[%emt 0:04:28]} Bd7 {[%emt 0:01:46]} 29. bxc6 {[%emt 0:02:35]} bxc6 {[%emt 0:01:56]} 30. Qa4 {[%emt 0:00:27]} Qc5 {[%emt 0:04:14]} 1/2-1/2

[Event "elllobregat Open-A 2019"]
[Site "El Prat de Llobregat"]
[Date "2019.12.04"]
[Round "2.8"]
[White "Raja Rithvik R"]
[Black "Narciso Dublan, Marc"]
[Result "1-0"]
[ECO "D12"]
[WhiteElo "2381"]
[BlackElo "2516"]
[Annotator "ChessBase"]
[PlyCount "67"]
[EventDate "2019.12.03"]
[EventType "swiss"]
[EventCountry "ESP"]
[SourceTitle "playchess.com"]
[Source "ChessBase"]
[SourceQuality "1"]
[TimeControl "40/5400+30:1800+30"]

1. Nf3 {[%emt 0:00:00]} d5 {[%emt 0:00:00]} 2. d4 {[%emt 0:00:00]} Nf6 {[%emt 0:00:04]} 3. c4 {[%emt 0:00:01]} c6 {[%emt 0:00:15]} 4. e3 Bf5 {[%emt 0:00:37]} 5. Nc3 {[%emt 0:00:18]} e6 {[%emt 0:00:20]} 6. Nh4 {[%emt 0:00:09]} Bg6 {[%emt 0:00:20]} 7. Be2 {[%emt 0:00:08]} Nbd7 {[%emt 0:00:24]} 8. O-O {[%emt 0:00:19]} Bd6 {[%emt 0:02:28]} 9. g3 {[%emt 0:00:06]} Qe7 {[%emt 0:02:56]} 10. Qb3 {[%emt 0:03:57]} Rb8 {[%emt 0:00:41]} 11. Re1 {[%emt 0:19:14]} Ne4 {[%emt 0:16:55]} 12. Kg2 {[%emt 0:13:01]} Nxc3 {[%emt 0:16:57]} 13. Nxg6 {[%emt 0:01:59]} hxg6 {[%emt 0:00:12]} 14. bxc3 {[%emt 0:00:05]} f5 {[%emt 0:01:59]} 15. cxd5 {[%emt 0:10:19]} exd5 {[%emt 0:00:57]} 16. c4 {[%emt 0:00:27]} Nf6 {[%emt 0:07:51]} 17. cxd5 {[%emt 0:07:50]} cxd5 18. Bf3 {[%emt 0:09:55]} Rd8 {[%emt 0:17:31]} 19. h4 {[%emt 0:10:41]} f4 {[%emt 0:12:30]} 20. e4 Bb4 {[%emt 0:12:47]} 21. Ba3 {[%emt 0:06:16]} Bxa3 {[%emt 0:01:46]} 22. exd5 {[%emt 0:00:05]} Bd6 {[%emt 0:00:12]} 23. Rxe7+ {[%emt 0:00:38]} Kxe7 {[%emt 0:00:04]} 24. Re1+ {[%emt 0:00:20]} Kf7 {[%emt 0:00:13]} 25. Qxb7+ {[%emt 0:00:44]} Rd7 {[%emt 0:00:05]} 26. Qc6 {[%emt 0:01:23]} fxg3 {[%emt 0:01:41]} 27. fxg3 {[%emt 0:00:12]} Rhd8 {[%emt 0:01:09]} 28. Re2 {[%emt 0:00:48]} Rc7 {[%emt 0:00:51]} 29. Qa6 {[%emt 0:00:10]} Rdd7 {[%emt 0:02:11]} 30. g4 {[%emt 0:02:51]} Ng8 {[%emt 0:00:32]} 31. g5 {[%emt 0:00:43]} Ne7 {[%emt 0:00:19]} 32. Bg4 {[%emt 0:01:20]} Nf5 {[%emt 0:00:15]} 33. Bxf5 {[%emt 0:00:29]} gxf5 {[%emt 0:00:04]} 34. g6+ {[%emt 0:00:02] Ke8} 1-0

[Event "elllobregat Open-A 2019"]
[Site "El Prat de Llobregat"]
[Date "2019.12.04"]
[Round "2.9"]
[White "Arizmendi Martinez, Julen Luis"]
[Black "Krishna Teja, N."]
[Result "1-0"]
[ECO "C95"]
[WhiteElo "2511"]
[BlackElo "2383"]
[Annotator "ChessBase"]
[PlyCount "123"]
[EventDate "2019.12.03"]
[EventType "swiss"]
[EventCountry "ESP"]
[SourceTitle "playchess.com"]
[Source "ChessBase"]
[SourceQuality "1"]
[TimeControl "40/5400+30:1800+30"]

1. e4 e5 {[%emt 0:00:00]} 2. Nf3 {[%emt 0:06:46]} Nc6 {[%emt 0:00:00]} 3. Bb5 {[%emt 0:01:20]} a6 {[%emt 0:00:00]} 4. Ba4 {[%emt 0:01:51]} Nf6 {[%emt 0:00:00]} 5. O-O {[%emt 0:00:35]} b5 {[%emt 0:01:19]} 6. Bb3 {[%emt 0:00:06]} Be7 {[%emt 0:00:05]} 7. Re1 {[%emt 0:03:55]} d6 {[%emt 0:01:29]} 8. c3 {[%emt 0:01:40]} O-O {[%emt 0:00:22]} 9. h3 {[%emt 0:01:48]} Nb8 {[%emt 0:00:24]} 10. d4 {[%emt 0:03:37]} Nbd7 {[%emt 0:00:20]} 11. c4 {[%emt 0:03:55]} c6 {[%emt 0:00:24]} 12. Qc2 {[%emt 0:16:30]} h6 {[%emt 0:19:58]} 13. Nc3 {[%emt 0:12:37]} Re8 {[%emt 0:01:11]} 14. Ne2 {[%emt 0:18:14]} Bf8 {[%emt 0:02:40]} 15. Ng3 {[%emt 0:00:59]} c5 {[%emt 0:07:10]} 16. dxe5 Nxe5 {[%emt 0:02:18]} 17. Nxe5 {[%emt 0:11:42]} dxe5 {[%emt 0:00:06]} 18. Be3 {[%emt 0:00:35]} Qc7 {[%emt 0:04:25]} 19. Rac1 b4 {[%emt 0:05:29]} 20. Ba4 {[%emt 0:01:36]} Rd8 {[%emt 0:03:52]} 21. Rcd1 {[%emt 0:01:47]} Be6 {[%emt 0:00:39]} 22. b3 Nd7 {[%emt 0:02:54]} 23. Bxd7 {[%emt 0:03:31]} Rxd7 {[%emt 0:01:17]} 24. Rxd7 {[%emt 0:00:40]} Bxd7 {[%emt 0:00:06]} 25. Nf5 {[%emt 0:04:07]} a5 {[%emt 0:01:42]} 26. Bc1 {[%emt 0:00:46]} a4 {[%emt 0:04:40]} 27. Bb2 {[%emt 0:00:20]} a3 {[%emt 0:03:29]} 28. Bc1 {[%emt 0:00:15]} Bxf5 {[%emt 0:02:30]} 29. exf5 {[%emt 0:00:04]} Rd8 {[%emt 0:00:07]} 30. Be3 {[%emt 0:04:47]} Qc6 {[%emt 0:01:57]} 31. Rd1 {[%emt 0:00:36]} Rxd1+ {[%emt 0:00:46]} 32. Qxd1 {[%emt 0:00:01]} Be7 {[%emt 0:03:10]} 33. Qd3 {[%emt 0:01:06]} e4 {[%emt 0:02:11]} 34. Qd2 {[%emt 0:00:11]} Qf6 {[%emt 0:00:49]} 35. Qd7 {[%emt 0:00:46]} h5 {[%emt 0:11:40]} 36. g3 {[%emt 0:00:31]} h4 {[%emt 0:00:07]} 37. Qe8+ {[%emt 0:00:35]} Kh7 {[%emt 0:00:01]} 38. g4 {[%emt 0:00:12]} Qd6 {[%emt 0:05:34]} 39. Kg2 {[%emt 0:00:02]} f6 {[%emt 0:03:28]} 40. Qg6+ {[%emt 0:00:00]} Kg8 {[%emt 0:00:00]} 41. Qe8+ {[%emt 0:01:19]} Kh7 {[%emt 0:01:34]} 42. Qf7 {[%emt 0:09:52]} Kh8 {[%emt 0:00:00]} 43. Qe6 {[%emt 0:10:28]} Qxe6 {[%emt 0:08:16]} 44. fxe6 {[%emt 0:00:02]} g6 {[%emt 0:00:26]} 45. f3 {[%emt 0:07:44]} f5 {[%emt 0:00:06]} 46. fxe4 fxg4 47. hxg4 {[%emt 0:00:38]} Kg7 {[%emt 0:05:19]} 48. g5 {[%emt 0:00:49]} Bd6 {[%emt 0:00:10]} 49. Kh3 {[%emt 0:00:15]} Kf8 {[%emt 0:00:32]} 50. e5 Be7 {[%emt 0:00:06]} 51. Kxh4 {[%emt 0:00:13]} Ke8 {[%emt 0:00:09]} 52. Kg4 {[%emt 0:00:32]} Kd8 {[%emt 0:00:07]} 53. Kf3 {[%emt 0:00:26]} Kc7 {[%emt 0:00:09]} 54. Ke4 {[%emt 0:00:23]} Kc6 {[%emt 0:00:06]} 55. Bf4 {[%emt 0:00:14]} Bf8 {[%emt 0:01:01]} 56. e7 {[%emt 0:01:17]} Bxe7 {[%emt 0:01:41]} 57. e6 Bd8 {[%emt 0:00:28]} 58. Ke5 {[%emt 0:00:47]} Be7 {[%emt 0:01:58]} 59. Be3 {[%emt 0:00:33]} Bd8 {[%emt 0:01:15]} 60. e7 Bxe7 61. Ke6 {[%emt 0:00:24]} Bd8 {[%emt 0:00:56]} 62. Kf7 {[%emt 0:01:19] Kd5} 1-0

[Event "elllobregat Open-A 2019"]
[Site "El Prat de Llobregat"]
[Date "2019.12.04"]
[Round "2.10"]
[White "Sankalp Gupta"]
[Black "Del Rio De Angelis, Salvador G."]
[Result "1/2-1/2"]
[ECO "C08"]
[WhiteElo "2365"]
[BlackElo "2507"]
[Annotator "ChessBase"]
[PlyCount "55"]
[EventDate "2019.12.03"]
[EventType "swiss"]
[EventCountry "ESP"]
[SourceTitle "playchess.com"]
[Source "ChessBase"]
[SourceQuality "1"]
[TimeControl "40/5400+30:1800+30"]

1. d4 {[%emt 0:00:00]} e6 {[%emt 0:00:04]} 2. e4 {[%emt 0:00:00]} d5 {[%emt 0:00:22]} 3. Nd2 {[%emt 0:00:00]} c5 {[%emt 0:00:24]} 4. exd5 {[%emt 0:00:00]} exd5 {[%emt 0:00:09]} 5. Ngf3 {[%emt 0:00:07]} a6 {[%emt 0:01:19]} 6. Qe2+ {[%emt 0:01:36]} Be7 {[%emt 0:02:07]} 7. dxc5 {[%emt 0:02:00]} Nf6 {[%emt 0:00:38]} 8. Nb3 {[%emt 0:00:31]} O-O {[%emt 0:00:08]} 9. Be3 {[%emt 0:07:39]} a5 {[%emt 0:01:34]} 10. a4 {[%emt 0:08:04]} Re8 {[%emt 0:00:38]} 11. Qd1 {[%emt 0:14:06]} Ng4 {[%emt 0:01:28]} 12. Bb5 {[%emt 0:03:45]} Nxe3 {[%emt 0:00:11]} 13. fxe3 {[%emt 0:00:02]} Nc6 {[%emt 0:00:05]} 14. O-O {[%emt 0:00:36]} Bf6 {[%emt 0:00:28]} 15. Nfd4 {[%emt 0:02:47]} Bd7 {[%emt 0:04:52]} 16. Qf3 {[%emt 0:00:29]} Re5 {[%emt 0:00:31]} 17. c3 {[%emt 0:17:53]} Qe7 {[%emt 0:02:08]} 18. Rae1 {[%emt 0:03:32]} h5 {[%emt 0:04:09]} 19. h3 {[%emt 0:01:05]} h4 {[%emt 0:01:38]} 20. Re2 {[%emt 0:01:57]} Re8 {[%emt 0:02:34]} 21. Rfe1 Bg5 {[%emt 0:11:07]} 22. Kh1 {[%emt 0:00:44]} Bh6 {[%emt 0:00:28]} 23. Kh2 g6 {[%emt 0:16:33]} 24. Kh1 {[%emt 0:06:01]} Bg7 {[%emt 0:02:14]} 25. Bd3 Rg5 {[%emt 0:07:16]} 26. Bb5 {[%emt 0:07:08]} Re5 {[%emt 0:01:09]} 27. Bd3 {[%emt 0:01:51]} Rg5 {[%emt 0:00:07]} 28. Bb5 {[%emt 0:00:02]} 1/2-1/2

[Event "elllobregat Open-A 2019"]
[Site "El Prat de Llobregat"]
[Date "2019.12.04"]
[Round "2.11"]
[White "Girish, A. Koushik"]
[Black "Minero Pineda, Sergio"]
[Result "1/2-1/2"]
[ECO "E11"]
[WhiteElo "2506"]
[BlackElo "2381"]
[Annotator "ChessBase"]
[PlyCount "69"]
[EventDate "2019.12.03"]
[EventType "swiss"]
[EventCountry "ESP"]
[SourceTitle "playchess.com"]
[Source "ChessBase"]
[SourceQuality "1"]
[TimeControl "40/5400+30:1800+30"]

1. d4 Nf6 {[%emt 0:00:00]} 2. c4 e6 3. Nf3 Bb4+ 4. Nbd2 {[%emt 0:00:27]} O-O {[%emt 0:04:14]} 5. a3 {[%emt 0:00:07]} Be7 {[%emt 0:00:13]} 6. e4 {[%emt 0:00:12]} d6 {[%emt 0:00:04]} 7. Bd3 Nbd7 8. O-O c5 {[%emt 0:00:00]} 9. b4 {[%emt 0:10:52]} cxd4 {[%emt 0:22:49]} 10. Nxd4 {[%emt 0:00:36]} a6 {[%emt 0:00:07]} 11. Bb2 {[%emt 0:00:32]} Qc7 {[%emt 0:00:35]} 12. Rc1 {[%emt 0:02:20]} b6 {[%emt 0:00:30]} 13. Qe2 {[%emt 0:07:09]} Bb7 {[%emt 0:00:15]} 14. f4 {[%emt 0:00:01]} Rfe8 {[%emt 0:03:29]} 15. Nxe6 {[%emt 0:29:36]} fxe6 {[%emt 0:00:14]} 16. e5 {[%emt 0:10:00]} Kh8 {[%emt 0:16:19]} 17. exf6 Bxf6 {[%emt 0:00:30]} 18. Nf3 {[%emt 0:01:00]} Bxb2 {[%emt 0:09:49]} 19. Qxb2 {[%emt 0:00:06]} Bxf3 {[%emt 0:09:56]} 20. Rxf3 e5 21. Be4 {[%emt 0:02:32]} Rad8 {[%emt 0:00:16]} 22. fxe5 {[%emt 0:02:16]} Rxe5 {[%emt 0:00:30]} 23. Rf7 {[%emt 0:05:39]} Rf8 {[%emt 0:13:06]} 24. Rcf1 {[%emt 0:08:33]} Rxf7 {[%emt 0:00:30]} 25. Rxf7 {[%emt 0:00:30]} Qd8 {[%emt 0:00:30]} 26. h3 {[%emt 0:00:30]} Nf6 {[%emt 0:06:52]} 27. Bf3 {[%emt 0:10:40]} Qe8 {[%emt 0:04:41]} 28. Ra7 {[%emt 0:02:38]} Re1+ {[%emt 0:00:29]} 29. Kh2 {[%emt 0:00:08]} Qe3 {[%emt 0:00:28]} 30. Ra8+ {[%emt 0:01:20]} Ne8 {[%emt 0:00:11]} 31. Bc6 {[%emt 0:03:21]} Qg1+ {[%emt 0:00:33]} 32. Kg3 {[%emt 0:00:05]} Qe3+ {[%emt 0:01:00]} 33. Kh2 {[%emt 0:02:32]} Qg1+ {[%emt 0:00:12]} 34. Kg3 {[%emt 0:00:07]} Qe3+ {[%emt 0:00:13]} 35. Kh2 {[%emt 0:00:36]} 1/2-1/2